{"text_format":"1","workbook":"xlsx","n_sheets":5,"sheets":["入力説明","入力用","様式9  (今回分)","指導内容","選択データ"],"not_rendered":{"charts":0,"images":21,"macros":1,"external_links":0,"defined_names":8,"comments":2,"pivot_tables":0},"unopened":[],"bounds":{"document_bytes":16777216,"sheet_cells":100000,"rows_first":2000,"rows_last":500,"rows_between":2000,"halvings":0,"cell_chars":16384,"cell_head_chars":4096},"cells_cut":0,"cells_raw":0,"read":"whole","date_system":"1900"}

{"sheet":"入力説明","index":0,"n_rows":53,"n_cols":22,"rows_kept":53,"cut":false,"hidden":false,"merged":[[18,0,27,0],[31,3,31,19],[54,11,54,14],[55,11,55,14],[50,11,50,14],[51,11,51,14],[52,11,52,14],[53,11,53,14],[32,13,33,18]]}
[null," "]
[null,"アシスタント派遣依頼「様式９」の入力項目説明",null,null,null,null,null,null,null,null,null,null,null,null,null,null,"様式９送付先メールアドレス　　hsc@silver.plala.or.jp",null,null,null,"保護解除は、☎番号"]
[null,"1.","このＢＯＯＫの名前を「学校名・様式９.xslm」に変更してください。　例：〇〇小・様式９.xslm"]
[null,"2.","入力用シートに学校名と担当者（体育主任）のお名前を入力してください。「〇〇小」の「小」は不要です。"]
[null,null,null,"２行目の「学校名」を入力すると、「学校名ソート用」の列に学校名が表示されます。"]
[null,null,"日付から順次入力をお願いします。入力の方法は、下記表の下に説明があります。ご確認ください。",null,null,null,null,null,null,null,null,null,null,null,null,null,null,null,null,null,null," "]
[null,"3.","今回の入力が終わったら、                           　　 をクリックしてください。（マクロの実行）"]
[null,"4.","未入力や範囲以外のデータがあるとエラーを表示してとストップします。"]
[null,null,"・「ＯＫ」を押すと、続行しますので、未入力の　№：〇行目　をメモしてください。"]
[null,"5.","未入力があっても「ＯＫ」を押すことにより、様式９(今回分）のシートが表示されます。"]
[null,"6.","エラーが有ると、「エラーが有りました。訂正してください。」と表示されるので、入力用シートを訂正　して、再度　　「送信用「様式９」作成実行」　をクリックしてください。"]
[null,null,"・全てＯＫの場合、「正常終了」と表示されます。"]
[null,"7.","「正常終了」したら、このＢＯＯＫを添付して、メール送信してください。",null,null,null,null,null,null,null,null,null,null,"hsc@silver.plala.or.jp"]
[null,"8.","２週目（２回目）からの派遣依頼は、入力用シートに追加入力　してください。（前回送信したデータの次の行から入力してください。１行空けても可）"]
[null,null,"１週目(１回目）と同様に、日付から順に入力し、「様式９(今回分）」のシートの　　「送信用「様式９」作成実行」　をクリックしてください。"]
[null,null,"・依頼週分が表示されます。エラー等の処理は同じです。今日より過去のデータは対象外となります。",null,null,null,null,null,null,null,null,null,null,null,null,null,null,"※過去分を削除しても良いが、曜日の関数は削除しない様にしてください。"]
[]
[]
["入力用シート"]
[]
[]
[]
[]
[]
[]
[]
[]
[]
[]
[]
[]
[null,null,null,"  ① ②③ ④ ⑤  ⑥  ⑦  ⑧    ⑨  ⑩ ⑪ ⑫ ⑬                        ⑭                           　      ⑮"]
[null,null,null,null,null,null,null,null,null,null,null,null,null,"指導内容についての項目で、「リスト」からの選択が出来ます。手打ちでも、「指導内容」シートからコピーして貼付けでもｏｋ。表示後、訂正も可。"]
[]
[]
[]
[]
[null,"7.","入力項目の説明"]
[null,null,null,"➀日付入力　６月１０日の場合、6/10と入力する"]
[null,null,null,null,"②自動表示される。月～金以外は、赤表示"]
[null,null,null,null,null,"③１～６のみ入力可（③～⑤、⑦～⑪までは、選択でも直接入力でも可）"]
[null,null,null,null,null,null,"④授業の開始時間（8:00～16:00）＜直接入力＞"]
[null,null,null,null,null,null,null,"⑤１～６と1.2.3又は4.5.6、1.2、3.4、5.6のみ　"]
[null,null,null,null,null,null,null,null,"⑥1～7と1.3　2.4　1.2.3　のように、１～7の組み合わせ"]
[null,null,null,null,null,null,null,null,null,"⑦10～180まで＜直接入力＞"]
[null,null,null,null,null,null,null,null,null,null,"⑧下記５種目から選択"]
[null,null,null,null,null,null,null,null,null,null,null,"⑨種目別に下記の詳細から選択"]
[null,null,null,null,null,null,null,null,"　",null,null,null,"⑩Ｔ１　or　Ｔ２　or　見守り"]
[null,null,null,null,null,null,null,null,null,null,null,null,null,"⑪アシスタントの養成人数：１～３のみ"]
[null,null,null,null,null,null,null,null,null,null,null,null,null,null,"⑫中止の時の代替の有無（○か×）"]
[null,null,null,null,null,null,null,null,null,null,null,null,null,null,null,"⑬事前打ち合わせが必要な場合、「要」"]
[null,null,null,null,null,null,null,null,null,null,null,null,null,null,null,null,null,"⑭主な指導内容・必須（選択：修正入力可）"]
[null,null,null,null,null,null,null,null,null,null,null,null,null,null,null,null,null,"⑮道具を使う場合、数などを記入してください。"]

{"sheet":"入力用","index":1,"n_rows":209,"n_cols":25,"rows_kept":209,"cut":false,"hidden":false,"merged":[[3,24,4,24],[2,1,2,2],[3,18,4,18],[3,19,4,19],[3,20,4,20],[3,21,4,21],[3,22,4,22],[3,23,4,23],[3,1,4,1],[3,13,4,13],[3,14,4,14],[3,15,4,15],[3,16,4,16],[3,17,4,17],[3,12,4,12],[0,16,2,16],[0,23,0,24],[1,3,1,4],[1,5,1,7],[2,3,2,4],[2,5,2,7],[2,19,2,24]]}
[null,"（様式９）",null,"小学校体育アシスタントの派遣について（依頼）",null,null,null,null,null,null,null,null,null,"令和６年度",null,null,"　入力終了後、左のオレンジの枠をクリックする\n「様式９（今回分）」が作成される"]
[null,null,null,"学　校　名:",null,"東大宮",null,null,"👈記入例：宮崎西、大久保など（「小」は、不要）"]
[null,{"$f":"TODAY()","v":"2024-05-23"},null,"申込担当者:",null,"杉元"]
[null,"№","学校名","日  付","曜","校","開始","学年","クラス","生徒","種目",null,"内容","派遣\n人数","中止代替","打合せ","指導内容について（「指導内容」シートからコピー貼り付け後、変更可）２段、3段入力可【空白不可】","学校の\n道具の状況","可否","ｱｼｽﾀﾝﾄ➀","性別","ｱｼｽﾀﾝﾄ➁","性別","ｱｼｽﾀﾝﾄ③","性別"]
[null,null,"ｿｰﾄ用","例:6/7","日","時","時間",null,null,"数",null,"詳細"]
[null,1,{"$f":"$F$2","v":"東大宮"},null,{"$f":"IF(D6<>\"\",TEXT(D6,\"aaa\"),\"\")","v":""}]
[null,2,{"$f":"$F$2","v":"東大宮"},null,""]
[null,3,"東大宮",null,""]
[null,4,"東大宮",null,""]
[null,5,"東大宮",null,""]
[null,6,"東大宮",null,""]
[null,7,"東大宮",null,{"$f":"IF(D12<>\"\",TEXT(D12,\"aaa\"),\"\")","v":""}]
[null,8,"東大宮",null,{"$f":"IF(D13<>\"\",TEXT(D13,\"aaa\"),\"\")","v":""}]
[null,9,"東大宮",null,""]
[null,10,"東大宮",null,""]
[null,11,"東大宮",null,""]
[null,12,"東大宮",null,""]
[null,13,"東大宮",null,""]
[null,14,"東大宮",null,{"$f":"IF(D19<>\"\",TEXT(D19,\"aaa\"),\"\")","v":""}]
[null,15,"東大宮",null,""]
[null,16,"東大宮",null,""]
[null,17,"東大宮",null,""]
[null,18,"東大宮",null,""]
[null,19,"東大宮",null,""]
[null,20,"東大宮",null,""]
[null,21,"東大宮",null,""]
[null,22,"東大宮",null,""]
[null,23,"東大宮",null,""]
[null,24,"東大宮",null,""]
[null,25,"東大宮",null,""]
[null,26,"東大宮",null,""]
[null,27,"東大宮",null,""]
[null,28,"東大宮",null,""]
[null,29,"東大宮",null,""]
[null,30,"東大宮",null,""]
[null,31,"東大宮",null,""]
[null,32,"東大宮",null,""]
[null,33,"東大宮",null,""]
[null,34,"東大宮",null,""]
[null,35,"東大宮",null,""]
[null,36,"東大宮",null,""]
[null,37,"東大宮",null,""]
[null,38,"東大宮",null,{"$f":"IF(D43<>\"\",TEXT(D43,\"aaa\"),\"\")","v":""}]
[null,39,"東大宮",null,""]
[null,40,"東大宮",null,""]
[null,41,"東大宮",null,""]
[null,42,"東大宮",null,""]
[null,43,"東大宮",null,""]
[null,44,"東大宮",null,""]
[null,45,"東大宮",null,""]
[null,46,"東大宮",null,""]
[null,47,"東大宮",null,""]
[null,48,"東大宮",null,""]
[null,49,"東大宮",null,""]
[null,50,"東大宮",null,""]
[null,51,"東大宮",null,""]
[null,52,"東大宮",null,""]
[null,53,"東大宮",null,""]
[null,54,"東大宮",null,""]
[null,55,"東大宮",null,""]
[null,56,"東大宮",null,""]
[null,57,"東大宮",null,""]
[null,58,"東大宮",null,""]
[null,59,"東大宮",null,""]
[null,60,"東大宮",null,""]
[null,61,"東大宮",null,""]
[null,62,"東大宮",null,""]
[null,63,"東大宮",null,""]
[null,64,"東大宮",null,""]
[null,65,"東大宮",null,{"$f":"IF(D70<>\"\",TEXT(D70,\"aaa\"),\"\")","v":""}]
[null,66,"東大宮",null,""]
[null,67,"東大宮",null,""]
[null,68,"東大宮",null,""]
[null,69,"東大宮",null,""]
[null,70,"東大宮",null,""]
[null,71,"東大宮",null,""]
[null,72,"東大宮",null,""]
[null,73,"東大宮",null,""]
[null,74,"東大宮",null,"",null,null,null,null,"　"]
[null,75,"東大宮",null,""]
[null,76,"東大宮",null,""]
[null,77,"東大宮",null,""]
[null,78,"東大宮",null,""]
[null,79,"東大宮",null,""]
[null,80,"東大宮",null,""]
[null,81,"東大宮",null,""]
[null,82,"東大宮",null,""]
[null,83,"東大宮",null,""]
[null,84,"東大宮",null,""]
[null,85,"東大宮",null,""]
[null,86,"東大宮",null,""]
[null,87,"東大宮",null,""]
[null,88,"東大宮",null,""]
[null,89,"東大宮",null,""]
[null,90,"東大宮",null,""]
[null,91,"東大宮",null,""]
[null,92,"東大宮",null,""]
[null,93,"東大宮",null,""]
[null,94,"東大宮",null,""]
[null,95,"東大宮",null,""]
[null,96,"東大宮",null,""]
[null,97,"東大宮",null,""]
[null,98,"東大宮",null,""]
[null,99,"東大宮",null,""]
[null,100,"東大宮",null,""]
[null,101,"東大宮",null,""]
[null,102,"東大宮",null,""]
[null,103,"東大宮",null,""]
[null,104,"東大宮",null,""]
[null,105,"東大宮",null,""]
[null,106,"東大宮",null,"",null,null,null,null,"　"]
[null,107,"東大宮",null,""]
[null,108,"東大宮",null,""]
[null,109,"東大宮",null,""]
[null,110,"東大宮",null,""]
[null,111,"東大宮",null,""]
[null,112,"東大宮",null,""]
[null,113,"東大宮",null,""]
[null,114,"東大宮",null,""]
[null,115,"東大宮",null,""]
[null,116,"東大宮",null,""]
[null,117,"東大宮",null,""]
[null,118,"東大宮",null,""]
[null,119,"東大宮",null,""]
[null,120,"東大宮",null,""]
[null,121,"東大宮",null,""]
[null,122,"東大宮",null,""]
[null,123,"東大宮",null,""]
[null,124,"東大宮",null,""]
[null,125,"東大宮",null,""]
[null,126,"東大宮",null,""]
[null,127,"東大宮",null,""]
[null,128,"東大宮",null,""]
[null,129,"東大宮",null,{"$f":"IF(D134<>\"\",TEXT(D134,\"aaa\"),\"\")","v":""}]
[null,130,"東大宮",null,""]
[null,131,"東大宮",null,""]
[null,132,"東大宮",null,""]
[null,133,"東大宮",null,""]
[null,134,"東大宮",null,""]
[null,135,"東大宮",null,""]
[null,136,"東大宮",null,""]
[null,137,"東大宮",null,""]
[null,138,"東大宮",null,""]
[null,139,"東大宮",null,""]
[null,140,"東大宮",null,""]
[null,141,"東大宮",null,""]
[null,142,"東大宮",null,""]
[null,143,"東大宮",null,""]
[null,144,"東大宮",null,""]
[null,145,"東大宮",null,""]
[null,146,"東大宮",null,""]
[null,147,"東大宮",null,""]
[null,148,"東大宮",null,""]
[null,149,"東大宮",null,""]
[null,150,"東大宮",null,""]
[null,151,"東大宮",null,""]
[null,152,"東大宮",null,""]
[null,153,"東大宮",null,""]
[null,154,{"$f":"$F$2","v":"東大宮"},null,""]
[null,155,"東大宮",null,""]
[null,156,"東大宮",null,""]
[null,157,"東大宮",null,"",null,null,null,null,"　"]
[null,158,"東大宮",null,""]
[null,159,"東大宮",null,""]
[null,160,"東大宮",null,""]
[null,161,"東大宮",null,""]
[null,162,"東大宮",null,""]
[null,163,"東大宮",null,""]
[null,164,"東大宮",null,""]
[null,165,"東大宮",null,""]
[null,166,"東大宮",null,""]
[null,167,"東大宮",null,""]
[null,168,"東大宮",null,""]
[null,169,"東大宮",null,""]
[null,170,"東大宮",null,""]
[null,171,"東大宮",null,""]
[null,172,"東大宮",null,""]
[null,173,"東大宮",null,""]
[null,174,"東大宮",null,""]
[null,175,"東大宮",null,""]
[null,176,"東大宮",null,""]
[null,177,"東大宮",null,""]
[null,178,"東大宮",null,""]
[null,179,"東大宮",null,""]
[null,180,"東大宮",null,""]
[null,181,"東大宮",null,""]
[null,182,"東大宮",null,""]
[null,183,"東大宮",null,""]
[null,184,"東大宮",null,""]
[null,185,"東大宮",null,""]
[null,186,"東大宮",null,""]
[null,187,"東大宮",null,""]
[null,188,"東大宮",null,""]
[null,189,"東大宮",null,""]
[null,190,"東大宮",null,""]
[null,191,"東大宮",null,""]
[null,192,"東大宮",null,""]
[null,193,"東大宮",null,{"$f":"IF(D198<>\"\",TEXT(D198,\"aaa\"),\"\")","v":""}]
[null,194,"東大宮",null,""]
[null,195,"東大宮",null,""]
[null,196,"東大宮",null,""]
[null,197,"東大宮",null,""]
[null,198,"東大宮",null,""]
[null,199,"東大宮",null,""]
[null,200,"東大宮",null,""]
[]
[]
[]
[null,null,null,null,null,null,null,null,"　"]

{"sheet":"様式9  (今回分)","index":2,"n_rows":59,"n_cols":24,"rows_kept":59,"cut":false,"hidden":false,"merged":[[3,23,4,23],[2,1,2,2],[3,17,4,17],[3,18,4,18],[3,19,4,19],[3,20,4,20],[3,21,4,21],[3,22,4,22],[3,1,4,1],[3,12,4,12],[3,13,4,13],[3,14,4,14],[3,15,4,15],[3,16,4,16],[1,16,2,16],[0,22,0,23],[1,3,1,4],[1,5,1,7],[2,3,2,4],[2,5,2,7],[2,18,2,23]]}
[null,"（様式９）",null,"小学校体育アシスタントの派遣について（依頼）",null,null,null,null,null,null,null,null,null,"令和６年度",null,null,"送信用・様式９"]
[null,null,null,"学　校　名:",null,"〇〇〇",null,null,"👈記入例：宮崎西、大久保など（「小」も不要）",null,null,null,null,null,null,null,"訂正は、入力用でお願いします"]
[null,{"$f":"TODAY()","v":"2024-05-23"},null,"申込担当者:",null,"川越　智美"]
[null,"№","学校名","日  付","曜","校","開始","学年","クラス","生徒","種目",null,"内容","派遣\n人数","中止代替","打合せ","指導内容について（おおよその内容を記入してください）　２段、3段入力可　　【空白不可】","学校の\n道具の状況","可否","ｱｼｽﾀﾝﾄ➀","性別","ｱｼｽﾀﾝﾄ➁","性別","ｱｼｽﾀﾝﾄ③"]
[null,null,"ｿｰﾄ用","例:6/7","日","時","時間",null,null,"数",null,"詳細"]
[null,1]
[null,2]
[null,3]
[null,4]
[null,5]
[null,6]
[null,7]
[null,8]
[null,9]
[null,10]
[null,11]
[null,12]
[null,13]
[null,14]
[null,15]
[null,16]
[null,17]
[null,18]
[null,19]
[null,20]
[null,21]
[null,22]
[null,23]
[null,24]
[null,25]
[null,26]
[null,27]
[null,28]
[null,29]
[null,30]
[null,31]
[null,32]
[null,33]
[null,34]
[null,35]
[null,36]
[null,37]
[null,38]
[null,39]
[null,40]
[null,41]
[null,42]
[null,43]
[null,44]
[null,45]
[null,46]
[null,47]
[null,48]
[null,49]
[null,50]
[null,51]
[null,52]
[null,53]
[null,54]

{"sheet":"指導内容","index":3,"n_rows":45,"n_cols":5,"rows_kept":45,"cut":false,"hidden":false,"merged":[]}
[null,null,"アシスタントへの指導内容のお願い例文"]
[null,null,"1：水慣れ（水中歩行・顔を洗う・口から吐く・息をとめる・鼻から吐く）",null,0]
[null,null,"2：水慣れ（色々なもぐり方）",null,0]
[null,null,"3：水慣れ（浮くにつながる動き）",null,0]
[null,null,"4：水慣れ（色々な浮き方）",null,0]
[null,null,"5：ふし浮き・けのび",null,0]
[null,null,"6：バタ足の基礎的な練習",null,0]
[null,null,"7：面かぶりクロール",null,0]
[null,null,"8：息つぎの基礎的な練習",null,0]
[null,null,"9：クロール",null,0]
[null,null,"10：平泳ぎ　キックの基礎的な練習",null,0]
[null,null,"11：平泳ぎ　手のかき・呼吸の確認　",null,0]
[null,null,"12：平泳ぎ",null,0]
[null,null,"13：泳力調査の時間を設けます。一緒に計測してください。",null,0]
[null,null,"14：全体指導後、泳力別に分けますので、指示したグループの指導をしてください。",null,0]
[null,null,"15：代替え（体つくり運動）",null,0]
[null,null,"16：跳び箱を使った運動・遊び",null,5]
[null,null,"17：開脚跳びの基礎（横向き）",null,5]
[null,null,"18：開脚跳び（縦向き）",null,6]
[null,null,"19：かかえ込み跳び",null,6]
[null,null,"20：台上前転につながるマット運動",null,6]
[null,null,"21：台上前転",null,6]
[null,null,"22：全体指導後、跳び箱の評価",null,6]
[null,null,"23：マットを使った運動・遊び",null,6]
[null,null,"24：前転につながる動き・前転",null,7]
[null,null,"25：開脚前転につながる動き・開脚前転",null,7]
[null,null,"26：開脚後転につながる動き・開脚後転",null,7]
[null,null,"27：後転につながる動き・後転",null,7]
[null,null,"28：大きい前転",null,7]
[null,null,"29：側方倒立回転につながる動き・側方倒立回転",null,7]
[null,null,"30：倒立前転につながる動き・倒立前転",null,7]
[null,null,"31：伸膝後転につながる動き・伸膝後転",null,7]
[null,null,"32：鉄棒を使ったいろいろな運動・遊び",null,7]
[null,null,"33：体つくり運動（ボール）",null,7]
[null,null,"34：体つくり運動（なわとび）",null,7]
[null,null,"35：体つくり運動（その他）",null,7]
[null,null,"36：タグラグビー（ルール説明・パスなどの基本的な動き）",null,7]
[null,null,"37：タグラグビー（ゲーム）",null,7]
[null,null,"38：バスケットボール（ルール説明・パス、ドリブル、シュートなどの基本的な動き）",null,7]
[null,null,"39：バスケットボール（ゲーム）",null,8]
[null,null,"40：サッカー（ルール説明・パス、ドリブル、シュートなどの基本的な動き）",null,8]
[null,null,"41：サッカー（ゲーム）",null,8]
[null,null,"42：バレーボール（ルール説明・パスなどの基本的な動き）",null,8]
[null,null,"43：バレーボール（ゲーム）",null,8]
[null,null,"44：陸上大会に向けた、陸上運動の指導（ハードル、走り高跳び、走り幅跳び、短距離、中距離、ソフトボール投げをグループに分けてアドバイスをお願いします）",null,9]

{"sheet":"選択データ","index":4,"n_rows":76,"n_cols":34,"rows_kept":76,"cut":false,"hidden":false,"merged":[[72,1,73,3],[1,0,2,8]]}
[]
["この色枠の行や列を追加削除しない事‼"]
[]
[]
[null,"校時と学年","クラス","生徒数","中止代替","打合せ"]
[null,1,1,10,"○","要"]
[null,2,2,20,"×","不要"]
[null,3,3,30,"　　"]
[null,4,4,40]
[null,5,5,50,null,null,null,null,null,null,"校時～内容（生徒数を除く）は、データの入力規則で設定"]
[null,6,6,60]
[null,"1.2.3",1.2,70]
[null,"3.4.5",3.4,80]
[null,1.2,1.3,100]
[null,3.4,2.4,120]
[null,5.6,"1.2.3",140]
[null,"その他","1.2.3.4",160]
[null,null,"1.2.3.4.5",null,null,null,null,null,null,null,null,null,null,null,null,null,null,null,null,null,null,null,null,null,null,null,null,null,null,null,"INDIRECT"]
[null,null,"その他",null,null,null,null,null,null,null,null,null,null,null,null,null,null,null,null,null,null,null,null,null,null,null,null,null,null,null,"名前が指定されている"]
[]
[null,"種目","詳細"]
[null,"水泳","顔つけ","クロール","平泳ぎ","その他"]
[null,"器械","跳び箱","マット","平均台","その他"]
[null,"ボール","ボール遊び","バスケ","ソフトバレー","タグラグビー","サッカー","その他"]
[null,"陸上","鉄棒","ハードル","幅跳び","高跳び","走り方","鬼ごっこ","持久走","その他"]
[null,"体作り","縄跳び","固定遊具","その他"]
[]
[null,"内容"]
[null,"Ｔ1"]
[null,"Ｔ2"]
[null,"見守り"]
[]
[null,null,null,null,null,null,null,null,null,null,null,null,null,null,null,null,null,null,null,null,null,null,null,null,null,null,null,null,null,null,null,null,null,"列を変更する"]
[]
[]
[]
[]
[]
[null,null,null,null,"Ｅ69は、関係ない"]
[]
[]
[]
[]
[]
[]
[]
[]
[]
[]
[]
[]
[]
[]
[]
[]
[]
[]
[]
[]
[]
[]
[]
[]
[]
[]
[]
[]
[]
[]
[]
[]
[]
[null,"曜日の自動算出"]
[]
[]
[null,null,null,null,null,null,null,null,"=TEXT（C5,\"aaa\")だと日付が空白の場合に「土」曜日が表示される"]